bitfinex-derivatives/quotes_SOLF0:USTF0_20240815
["timestamp","ask_amount","ask_price","bid_price","bid_amount"]
[1723737253293,0.04826313,146.17,146.14,0.04323427]
[1723737253498,0.04826313,146.17,146.15,3.4208]
[1723737254090,0.04826313,146.17,146.16,3.4207]
[1723737254500,0.04826313,146.17,146.16,14.75977582]
[1723737255999,0.04826313,146.17,146.16,14.76091498]
[1723737257191,3.4196,146.21,146.16,11.34021498]
[1723737257397,3.4196,146.21,146.18,29.58]
[1723737258098,3.4196,146.21,146.18,33.0001]
[1723737258304,3.4630206,146.21,146.18,33.05117167]
[1723737258697,3.4630206,146.21,146.19,3.42]
[1723737259003,3.4630206,146.21,146.18,29.63107167]
[1723737259202,3.4630206,146.21,146.18,33.05117167]
[1723737259403,3.4198,146.2,146.18,3.47117167]
[1723737259607,0.0434206,146.21,146.18,0.05107167]
[1723737260904,3.42,146.19,146.18,0.05107167]
[1723737262203,3.4199,146.2,146.18,0.05107167]
[1723737262807,3.42,146.19,146.18,0.05107167]
[1723737272014,13.1665206,146.21,146.11,4.9]
[1723737272216,14.4048206,146.21,146.13,11.82]
[1723737272513,14.3614,146.21,146.14,14.7601056]
[1723737272715,14.3614,146.21,146.15,11.3391056]
[1723737272913,14.3614,146.21,146.14,3.421]
[1723737273114,3.4204,146.18,146.16,0.04826414]
[1723737273612,3.4205,146.17,146.16,0.04826414]
[1723737273909,0.04520822,146.19,146.16,0.04826414]
[1723737274308,3.4204,146.18,146.16,0.04826414]
[1723737274513,3.4204,146.18,146.16,3.46896414]
[1723737275814,0.04520822,146.19,146.18,3.4202]
[1723737276018,0.04520822,146.19,146.18,15.2402]
[1723737276310,0.04520822,146.19,146.17,3.4205]
[1723737276716,0.04520822,146.19,146.16,0.04826414]
[1723737276910,0.04520822,146.19,146.17,11.82]
[1723737277117,1.3098,146.28,146.18,11.82]
[1723737277317,1.3098,146.28,146.23,11.82]
[1723737277613,3.4186,146.25,146.23,11.82]
[1723737278015,3.4186,146.25,146.22,3.4191]
[1723737278516,3.46989271,146.25,146.22,3.46941012]
[1723737278718,0.05129271,146.25,146.24,3.4188]
[1723737280117,0.05129271,146.25,146.24,44.26715196]
[1723737280714,0.05129271,146.25,146.24,44.26538489]
[1723737281719,0.05129271,146.25,146.24,14.73538489]
[1723737282519,0.05129271,146.25,146.24,3.4188]
[1723737283317,0.05129271,146.25,146.24,32.9488]
[1723737287228,1.3098,146.31,146.24,40.83886086]
[1723737287421,1.3098,146.31,146.27,29.53]
[1723737287724,1.3098,146.31,146.27,32.948]
[1723737288524,0.03996835,146.3,146.28,0.04526354]
[1723737288726,3.4177,146.29,146.28,0.04526354]
[1723737291627,3.4185,146.26,146.16,6.8413]
[1723737291830,29.56996835,146.3,146.23,4.9]
[1723737292029,29.53,146.3,146.23,4.9]
[1723737292229,3.4187,146.25,146.23,8.3191]
[1723737292532,29.53,146.3,146.23,8.3191]
[1723737293026,3.4185,146.26,146.25,0.04693377]
[1723737296335,3.4182,146.27,146.25,0.04693377]
[1723737296724,0.0510092,146.28,146.25,0.04693377]
[1723737296925,0.0510092,146.28,146.25,29.57693377]
[1723737297324,3.4689092,146.28,146.26,3.4183]
[1723737297935,0.0510092,146.28,146.27,3.4181]
[1723737298129,32.9015015,146.38,146.27,32.9481]
[1723737298329,4.53311457,146.37,146.28,29.53]
[1723737298634,3.4173,146.31,146.28,29.53]
[1723737299730,0.03422269,146.31,146.28,0.0514464]
[1723737300132,3.4177,146.29,146.28,0.0514464]
[1723737301530,4.0532,146.3,146.22,32.9492]
[1723737301733,3.42675507,146.29,146.21,4.9]
[1723737302142,3.4189,146.24,146.21,8.3194]
[1723737302336,3.42675507,146.29,146.21,4.9]
[1723737302538,4.0532,146.3,146.21,4.9]
[1723737302745,0.0524662,146.26,146.24,0.05141225]
[1723737303138,3.4710662,146.26,146.24,0.05141225]
[1723737303537,0.0524662,146.26,146.24,0.05141225]
[1723737303735,3.4186,146.25,146.24,0.05141225]
[1723737304742,0.0524662,146.26,146.24,3.47021225]
[1723737304940,0.0524662,146.26,146.24,0.05141225]
[1723737305135,0.0524662,146.26,146.25,3.4186]
[1723737309747,0.0524662,146.26,146.25,32.9486]
[1723737309952,3.4176,146.3,146.28,3.4178]
[1723737310750,33.2938,146.35,146.26,4.88]
[1723737311154,0.03320289,146.32,146.29,0.05133498]
[1723737311355,3.4174,146.3,146.29,0.05133498]
[1723737312056,0.03320289,146.32,146.29,0.05133498]
[1723737312654,3.4172,146.31,146.29,0.05133498]
[1723737313356,3.4174,146.3,146.29,0.05133498]
[1723737315054,29.53,146.31,146.2,34.41]
[1723737315256,29.53,146.27,146.19,3.4198]
[1723737315454,29.53,146.27,146.18,30.8168]
[1723737315455,32.93012497,146.27,146.17,6.2214]
[1723737315652,29.53,146.25,146.16,29.53]
[1723737315852,29.53,146.25,146.14,1.2934]
[1723737315853,3.4193,146.22,146.14,30.8234]
[1723737316050,0.05017895,146.22,146.19,0.05244645]
[1723737316453,3.4199,146.2,146.19,0.05244645]
[1723737319765,3.4196,146.21,146.19,0.05244645]
[1723737320267,0.05017895,146.22,146.19,0.05244645]
[1723737320765,0.05017895,146.22,146.2,3.4196]
[1723737320961,0.05017895,146.22,146.19,0.05244645]
[1723737321358,0.05017895,146.22,146.2,3.4196]
[1723737321560,3.46947895,146.22,146.2,3.4196]
[1723737321755,3.46947895,146.22,146.19,0.05244645]
[1723737321957,3.46947895,146.22,146.19,3.47234645]
[1723737322359,3.46947895,146.22,146.19,0.05244645]
[1723737322562,0.05017895,146.22,146.2,3.4196]
[1723737322762,0.05017895,146.22,146.2,29.53]
[1723737323069,0.05017895,146.22,146.21,29.53]
[1723737323261,0.05017895,146.22,146.21,32.9495]
[1723737323659,0.05017895,146.22,146.21,3.4195]
[1723737324165,0.05017895,146.22,146.2,32.9496]
[1723737324562,0.05017895,146.22,146.21,29.53]
[1723737324758,0.05017895,146.22,146.21,32.9495]
[1723737324966,2.5497,146.29,146.21,29.53]
[1723737325158,1.3074,146.31,146.24,29.53]
[1723737325352,3.418,146.28,146.24,29.53]
[1723737325567,1.3074,146.31,146.24,29.53]
[1723737325758,1.3074,146.31,146.25,3.4185]
[1723737325959,1.3074,146.31,146.24,29.53]
[1723737326267,0.03435892,146.29,146.27,0.05053399]
[1723737326466,3.4179,146.28,146.27,0.05053399]
[1723737328761,0.03435892,146.29,146.27,0.05053399]
[1723737329767,3.45215892,146.29,146.27,0.05053399]
[1723737331165,3.4179,146.28,146.27,0.05053399]
[1723737340574,3.45205892,146.29,146.27,0.05053399]
[1723737343462,3.4179,146.28,146.27,0.05053399]
[1723737343667,0.03435892,146.29,146.27,0.05053399]
[1723737343963,3.45215892,146.29,146.27,0.05053399]
[1723737344669,3.4179,146.28,146.27,0.05053399]
[1723737354684,15.32469461,146.29,146.22,3.4192]
[1723737354976,11.81,146.29,146.21,11.81]
[1723737355179,11.81,146.29,146.23,11.81]
[1723737355982,3.4185,146.26,146.25,0.04758841]
[1723737363284,3.46534279,146.27,146.25,0.04758841]
[1723737364085,3.46534279,146.27,146.25,11.85758841]
[1723737364086,0.04714279,146.27,146.25,11.85758841]
[1723737365584,3.46534279,146.27,146.25,15.27608841]
[1723737366493,0.04714279,146.27,146.26,3.4184]
[1723737367283,0.04714279,146.27,146.26,15.2284]
[1723737368290,0.04714279,146.27,146.26,3.4184]
[1723737368793,0.04714279,146.27,146.26,15.2284]
[1723737370793,0.04714279,146.27,146.26,18.69745476]
[1723737371588,0.04714279,146.27,146.26,15.2284]
[1723737379394,0.04714279,146.27,146.26,18.71328325]
[1723737379700,0.04714279,146.27,146.26,30.03698147]
[1723737381295,0.04714279,146.27,146.26,26.55209822]
[1723737381493,0.04714279,146.27,146.26,15.2284]
[1723737381694,0.04714279,146.27,146.26,26.54831977]
[1723737382095,0.04714279,146.27,146.26,29.89157305]
[1723737382396,4.86,146.35,146.26,29.89157305]
[1723737382601,16.67,146.35,146.29,11.81]
[1723737382800,2.5262,146.36,146.29,11.81]
[1723737383101,2.5262,146.36,146.31,3.417]
[1723737383601,3.4168,146.33,146.31,3.417]
[1723737383897,3.4168,146.33,146.32,0.04717366]
[1723737384398,3.4166,146.34,146.32,0.04717366]
[1723737384601,0.03775011,146.35,146.32,0.04717366]
[1723737385106,11.81,146.33,146.19,6.8399]
[1723737385291,11.81,146.3,146.2,13.85136134]
[1723737385491,3.4182,146.27,146.21,11.31436134]
[1723737385701,3.4182,146.27,146.23,11.81]
[1723737385900,3.4182,146.27,146.24,11.31436134]
[1723737386096,3.4182,146.27,146.23,11.81]
[1723737386296,3.4182,146.27,146.25,11.81]
[1723737386297,0.04596267,146.27,146.25,11.81]
[1723737386496,0.04596267,146.27,146.25,15.2285]
[1723737387905,0.04596267,146.27,146.24,0.0478899]
[1723737389096,3.4186,146.25,146.24,0.0478899]
[1723737390603,0.04596267,146.27,146.24,0.0478899]
[1723737390997,3.4185,146.26,146.24,0.0478899]
[1723737391304,0.04596267,146.27,146.24,0.0478899]
[1723737391608,0.04596267,146.27,146.26,15.2284]
[1723737392499,0.04596267,146.27,146.26,11.81]
[1723737392698,0.04596267,146.27,146.24,11.8578899]
[1723737392907,3.46416267,146.27,146.25,11.32941804]
[1723737393100,3.46416267,146.27,146.24,15.2765899]
[1723737393295,3.46416267,146.27,146.25,11.3300982]
[1723737393495,3.46416267,146.27,146.24,15.2765899]
[1723737393705,0.04596267,146.27,146.24,0.0478899]
[1723737394398,11.81,146.25,146.24,0.0478899]
[1723737394604,15.2286,146.25,146.24,0.0478899]
[1723737394903,3.4186,146.25,146.24,0.0478899]
[1723737395703,3.4197,146.21,146.17,4.86]
[1723737395907,11.81,146.25,146.18,23.15314269]
[1723737396105,11.81,146.25,146.19,14.76304269]
[1723737396297,3.4196,146.21,146.18,11.81]
[1723737396495,11.81,146.23,146.19,11.34484165]
[1723737396705,11.81,146.23,146.18,11.81]
[1723737396706,3.4198,146.2,146.18,11.81]
[1723737397204,3.4198,146.2,146.18,11.85657994]
[1723737397506,3.4198,146.2,146.18,0.04657994]
[1723737397700,3.42,146.19,146.18,0.04657994]
[1723737397902,3.42,146.19,146.18,11.39251394]
[1723737399098,0.04647527,146.22,146.18,0.04657994]
[1723737399299,0.04647527,146.22,146.19,29.56]
[1723737399504,0.04647527,146.22,146.18,3.41674501]
[1723737399803,3.46597527,146.22,146.19,3.4199]
[1723737401802,3.46597527,146.22,146.2,3.4197]
[1723737402005,3.46597527,146.22,146.18,0.04657994]
[1723737402307,3.4195,146.21,146.18,14.79840441]
[1723737402602,0.04647527,146.22,146.18,0.04657994]
[1723737403507,3.42,146.19,146.18,0.04657994]
[1723737408907,0.04647527,146.22,146.18,0.04657994]
[1723737409505,0.04647527,146.22,146.18,3.46677994]
[1723737410012,3.4199,146.2,146.18,0.04657994]
[1723737410512,0.04647527,146.22,146.18,0.04657994]
[1723737411406,3.42,146.19,146.18,0.04657994]
[1723737411802,0.04647527,146.22,146.18,0.04657994]
[1723737412511,3.46587527,146.22,146.18,0.04657994]
[1723737413015,3.46587527,146.22,146.19,3.4199]
[1723737413214,3.46587527,146.22,146.18,0.04657994]
[1723737413413,0.04647527,146.22,146.18,0.04657994]
[1723737413615,0.04647527,146.22,146.2,3.4196]
[1723737414010,3.46587527,146.22,146.2,3.4196]
[1723737414418,0.04647527,146.22,146.18,0.04657994]
[1723737414619,3.4196,146.21,146.18,0.04657994]
[1723737414818,0.04647527,146.22,146.18,0.04657994]
[1723737415318,0.04647527,146.22,146.18,3.53278987]
[1723737415514,0.04647527,146.22,146.18,0.04657994]
[1723737416307,3.4196,146.21,146.19,3.4199]
[1723737416513,0.04647527,146.22,146.18,0.04657994]
[1723737417009,3.4199,146.2,146.18,3.46677994]
[1723737418813,3.4196,146.21,146.19,3.4199]
[1723737419127,0.04647527,146.22,146.18,15.31038355]
[1723737419615,3.4195,146.21,146.19,3.4199]
[1723737420718,3.4195,146.21,146.2,3.4198]
[1723737420920,3.4195,146.21,146.18,11.86657994]
[1723737421613,0.04647527,146.22,146.19,11.82]
[1723737422227,3.46587527,146.22,146.2,3.4196]
[1723737423917,3.4195,146.21,146.19,3.4199]
[1723737424318,3.42,146.2,146.18,3.46667994]
[1723737424623,11.82,146.21,146.18,0.04657994]
[1723737425015,0.04647527,146.22,146.18,0.04657994]
[1723737425216,11.82,146.21,146.18,0.04657994]
[1723737425924,3.42,146.19,146.18,0.04657994]
[1723737427335,0.04647527,146.22,146.18,0.04657994]
[1723737428229,3.4199,146.2,146.18,3.46677994]
[1723737429824,0.04647527,146.22,146.19,11.82]
[1723737430023,0.04647527,146.22,146.19,4.84]
[1723737430226,0.04647527,146.22,146.18,4.88657994]
[1723737430432,0.04647527,146.22,146.18,0.04657994]
[1723737430934,3.4197,146.21,146.18,3.46657994]
[1723737432835,11.86647527,146.22,146.18,0.04657994]
[1723737433333,3.4199,146.2,146.18,0.04657994]
[1723737434733,3.42,146.19,146.18,0.04657994]
[1723737435136,0.04647527,146.22,146.18,0.04657994]
[1723737435334,3.4196,146.21,146.18,0.04657994]
[1723737435530,3.4196,146.21,146.19,3.42]
[1723737436232,3.4196,146.21,146.18,3.46667994]
[1723737437136,3.4198,146.2,146.18,3.46667994]
[1723737437435,11.86647527,146.22,146.18,0.04657994]
[1723737437934,3.4196,146.21,146.18,3.46657994]
[1723737438933,3.4198,146.2,146.18,3.46657994]
[1723737439333,0.04647527,146.22,146.18,0.04657994]
[1723737440130,3.4196,146.21,146.19,3.4199]
[1723737441637,3.46587527,146.22,146.19,3.4199]
[1723737441834,0.04647527,146.22,146.2,11.82]
[1723737442235,0.04647527,146.22,146.21,3.4195]
[1723737442430,0.04647527,146.22,146.18,0.04657994]
[1723737442638,0.04647527,146.22,146.18,11.86657994]
[1723737442842,3.46587527,146.22,146.19,3.4198]
[1723737443036,3.46587527,146.22,146.18,11.86657994]
[1723737443637,3.46587527,146.22,146.19,3.4198]
[1723737443939,3.46587527,146.22,146.18,11.86657994]
[1723737444138,3.46587527,146.22,146.19,3.4198]
[1723737447343,3.4195,146.21,146.19,3.4198]
[1723737447936,3.46587527,146.22,146.19,3.4198]
[1723737448439,3.4196,146.21,146.19,3.4198]
[1723737449846,3.46587527,146.22,146.2,3.4197]
[1723737450741,0.04647527,146.22,146.21,3.4195]
[1723737452448,3.46587527,146.22,146.2,3.4196]
[1723737452641,3.46587527,146.22,146.19,11.82]
[1723737452642,0.04647527,146.22,146.19,11.82]
[1723737452840,0.04647527,146.22,146.18,0.04657994]
[1723737453347,3.4196,146.21,146.19,3.4199]
[1723737454142,3.42,146.19,146.18,0.04657994]
[1723737454940,3.4199,146.2,146.18,0.04657994]
[1723737455849,11.86647527,146.22,146.18,0.04657994]
[1723737455850,3.42,146.19,146.18,0.04657994]
[1723737459344,15.24,146.19,146.18,0.04657994]
[1723737460047,3.42,146.19,146.18,0.04657994]
[1723737464246,3.4198,146.2,146.18,0.04657994]
[1723737464750,3.4198,146.2,146.19,11.34284931]
[1723737465846,3.4198,146.2,146.19,11.34249509]
[1723737470150,3.4198,146.2,146.19,11.34247033]
[1723737470660,3.42,146.19,146.18,0.04657994]
[1723737480460,3.4214,146.14,146.12,4.84]
[1723737480660,3.4214,146.14,146.13,11.33936344]
[1723737481366,3.4214,146.14,146.12,4.84]
[1723737481558,3.4212,146.14,146.13,11.34139667]
[1723737481865,3.47008997,146.14,146.13,11.34139667]
[1723737483659,15.29008997,146.14,146.13,11.34139667]
[1723737484564,15.29008997,146.14,146.01,3.863]
[1723737484565,11.86888997,146.14,146.06,4.84]
[1723737484868,11.86888997,146.14,146.07,11.35083035]
[1723737484869,11.82,146.1,146.07,11.35083035]
[1723737485067,3.4223,146.09,146.08,11.35083035]
[1723737485261,11.82,146.1,146.03,18.65018749]
[1723737485470,11.82,146.11,146.05,11.82]
[1723737485669,3.4228,146.07,146.05,11.82]
[1723737485967,3.4228,146.07,146.06,10.23882526]
[1723737486363,3.4228,146.07,146.05,11.82]
[1723737486571,3.4231,146.06,146.05,11.82]
[1723737486870,3.4231,146.06,146.05,22.11414438]
[1723737487069,3.4231,146.06,146.05,10.29414438]
[1723737487470,3.4231,146.06,146.05,0.05179876]
[1723737488868,15.2431,146.06,146.05,0.05179876]
[1723737495671,3.4231,146.06,146.05,0.05179876]
[1723737497786,15.2431,146.06,146.05,0.05179876]
[1723737500278,3.4229,146.07,146.05,0.05179876]
[1723737501176,3.4231,146.06,146.05,0.05179876]
[1723737510082,15.2431,146.06,146.05,0.05179876]
[1723737510480,3.4231,146.06,146.05,0.05179876]
[1723737513384,15.2431,146.06,146.05,0.05179876]
[1723737515789,3.4231,146.06,146.05,0.05179876]
[1723737515989,11.8690149,146.09,146.05,0.05179876]
[1723737516591,0.0490149,146.09,146.05,0.05179876]
[1723737516995,3.4229,146.07,146.05,0.05179876]
[1723737519281,3.4226,146.08,146.05,3.47509876]
[1723737519886,3.4228,146.07,146.05,3.47509876]
[1723737520289,3.4228,146.07,146.05,0.05179876]
[1723737523488,3.4227,146.08,146.05,11.87179876]
[1723737523889,0.0490149,146.09,146.05,15.29489876]
[1723737524091,0.0490149,146.09,146.06,11.82]
[1723737524488,0.0490149,146.09,146.07,1.3168]
[1723737525296,3.4715149,146.09,146.07,4.7395]
[1723737526495,3.4715149,146.09,146.07,6.0307]
[1723737527395,3.4226,146.08,146.07,2.608]
[1723737527997,3.4228,146.07,146.05,3.47499876]
[1723737528191,0.0490149,146.09,146.05,0.05179876]
[1723737528598,3.4231,146.06,146.05,0.05179876]
[1723737528791,0.0490149,146.09,146.05,0.05179876]
[1723737529097,3.4228,146.08,146.05,3.47499876]
[1723737529601,3.4228,146.08,146.06,3.423]
[1723737530703,3.4228,146.07,146.05,15.29499876]
[1723737530998,0.0490149,146.09,146.05,11.87179876]
[1723737531296,0.0490149,146.09,146.06,11.82]
[1723737531893,3.4226,146.08,146.06,15.2429]
[1723737535194,3.4714149,146.09,146.07,3.4228]
[1723737535501,3.4714149,146.09,146.06,11.82]
[1723737535696,3.4714149,146.09,146.06,15.2429]
[1723737537101,0.0490149,146.09,146.05,3.47499876]
[1723737537491,3.4228,146.08,146.05,3.47499876]
[1723737538200,0.0490149,146.09,146.05,0.05179876]
[1723737538701,11.8690149,146.09,146.05,0.05179876]
[1723737539704,3.4231,146.06,146.05,0.05179876]
[1723737540203,3.4229,146.07,146.05,3.47509876]
[1723737540998,0.0490149,146.09,146.06,3.4228]
[1723737541199,0.0490149,146.09,146.05,0.05179876]
[1723737541601,3.4229,146.07,146.05,3.47499876]
[1723737541803,3.4229,146.07,146.05,0.05179876]
[1723737543105,3.4231,146.06,146.05,0.05179876]
[1723737545299,0.0490149,146.09,146.05,0.05179876]
[1723737545909,11.8690149,146.09,146.05,0.05179876]
[1723737546705,3.4231,146.06,146.05,0.05179876]
[1723737547803,3.4229,146.07,146.05,0.05179876]
[1723737548003,3.4229,146.07,146.05,3.47489876]
[1723737548402,3.4227,146.08,146.05,0.05179876]
[1723737548605,0.0490149,146.09,146.05,15.29489876]
[1723737549299,3.4227,146.08,146.06,3.423]
[1723737550207,3.4227,146.08,146.05,15.29489876]
[1723737550504,3.4227,146.08,146.05,11.87179876]
[1723737551806,3.4227,146.08,146.06,3.423]
[1723737552102,3.4227,146.08,146.05,11.87179876]
[1723737552311,3.4227,146.08,146.06,3.423]
[1723737552813,3.4229,146.07,146.05,11.87179876]
[1723737553204,0.0490149,146.09,146.05,0.05179876]
[1723737553405,11.82,146.06,146.05,0.05179876]
[1723737553808,11.82,146.06,145.98,13.66246087]
[1723737554106,11.82,146.04,145.99,10.23766087]
[1723737554415,11.82,146.04,146.0,10.23766087]
[1723737554601,3.424,146.02,146.01,10.23766087]
[1723737556611,3.4242,146.01,146.0,0.04673068]
[1723737556911,3.4242,146.01,146.0,10.28756359]
[1723737557108,3.4242,146.01,146.0,10.28747972]
[1723737557708,0.04316496,146.03,146.0,10.28747972]
[1723737557905,0.04316496,146.03,146.0,0.04673068]
[1723737558211,0.04316496,146.03,146.01,10.24291266]
[1723737558519,0.04316496,146.03,146.0,0.04673068]
[1723737558819,3.424,146.02,146.01,10.24374022]
[1723737560509,3.4242,146.01,146.0,0.04673068]
[1723737560709,3.4242,146.01,146.0,10.29448737]
[1723737561509,3.4241,146.02,146.0,10.29448737]
[1723737561713,3.4241,146.02,146.01,10.24775669]
[1723737564511,3.4241,146.02,146.01,10.25319008]
[1723737565517,3.4241,146.02,146.0,0.04673068]
[1723737565715,3.4241,146.02,146.01,10.25739714]
[1723737566517,3.4241,146.02,146.0,0.04673068]
[1723737567319,3.47021948,146.03,146.0,0.04673068]
[1723737567817,3.4241,146.02,146.01,10.25946551]
[1723737568020,3.4241,146.02,146.0,0.04673068]
[1723737568413,3.4241,146.02,146.01,10.25945847]
[1723737568614,3.4241,146.02,146.0,0.04673068]
[1723737569117,3.4241,146.02,146.01,10.25967162]
[1723737569518,3.4241,146.02,146.0,0.04673068]
[1723737569519,3.4242,146.01,146.0,0.04673068]
[1723737569716,3.4242,146.01,146.0,10.30846646]
[1723737570918,3.4241,146.02,146.0,10.30846646]
[1723737571116,0.04316496,146.03,146.0,0.04673068]
[1723737571320,0.04316496,146.03,146.01,10.25793701]
[1723737571521,3.46706496,146.03,146.0,3.47113068]
[1723737571821,3.46706496,146.03,146.01,10.25631116]
[1723737572027,3.46706496,146.03,146.0,3.47113068]
[1723737572225,3.424,146.02,146.01,10.25610315]
[1723737572422,3.424,146.02,146.0,0.04673068]
[1723737573417,3.4242,146.01,146.0,0.04673068]
[1723737573618,3.4242,146.01,146.0,10.30514298]
[1723737575124,15.2442,146.01,146.0,10.30514298]
[1723737575425,3.4255,145.96,145.92,11.82]
[1723737575619,3.4255,145.96,145.93,13.69081909]
[1723737575825,3.4255,145.96,145.94,10.26481909]
[1723737576125,3.4255,145.96,145.95,10.26481909]
[1723737576424,3.4255,145.96,145.91,15.7357]
[1723737576425,3.426,145.94,145.91,3.9157]
[1723737576623,11.82,145.96,145.92,10.26552888]
[1723737576827,11.82,145.96,145.94,0.04876983]
[1723737577030,3.4256,145.95,145.94,0.04876983]
[1723737577225,15.2456,145.95,145.94,0.04876983]
[1723737578434,0.04827566,145.97,145.94,0.04876983]
[1723737578925,3.4256,145.96,145.94,0.04876983]
[1723737579931,3.4256,145.95,145.94,0.04876983]
[1723737580537,3.4255,145.96,145.94,3.47456983]
[1723737580737,3.4255,145.96,145.94,0.04876983]
[1723737581039,3.4256,145.96,145.94,0.04876983]
[1723737581739,3.4256,145.96,145.94,3.47466983]
[1723737582144,3.4256,145.96,145.94,0.04876983]
[1723737582639,3.4256,145.96,145.94,3.47446983]
[1723737582835,0.04827566,145.97,145.95,11.82]
[1723737583041,0.04827566,145.97,145.95,13.0815]
[1723737583339,0.04827566,145.97,145.96,3.4254]
[1723737583928,0.04827566,145.97,145.95,4.6871]
[1723737584129,0.04827566,145.97,145.94,0.04876983]
[1723737585142,3.4256,145.96,145.94,3.47456983]
[1723737585930,3.4256,145.95,145.94,0.04876983]
[1723737587028,3.4255,145.96,145.94,0.04876983]
[1723737588143,3.4255,145.96,145.94,3.47466983]
[1723737588838,3.47357566,145.97,145.95,3.4256]
[1723737589143,0.04827566,145.97,145.95,15.2456]
[1723737589543,0.04827566,145.97,145.96,3.4254]
[1723737591847,3.47347566,145.97,145.95,15.2455]
[1723737592050,3.47347566,145.97,145.95,3.4255]
[1723737594648,3.4254,145.96,145.94,3.47446983]
[1723737594843,0.04827566,145.97,145.94,0.04876983]
[1723737595243,3.47357566,145.97,145.95,3.4255]
[1723737595640,0.04827566,145.97,145.95,11.82]
[1723737596243,0.04827566,145.97,145.96,3.4254]
[1723737599254,3.47347566,145.97,145.95,3.4255]
[1723737600455,0.04827566,145.97,145.94,1.32386983]
[1723737600754,3.4256,145.95,145.94,1.32386983]
[1723737601955,3.4255,145.96,145.94,1.32386983]
[1723737602150,0.04827566,145.97,145.94,1.32386983]
[1723737603649,0.04827566,145.97,145.96,3.4254]
[1723737603957,176.54696064,146.06,145.94,1.32386983]
[1723737603958,6.8459,146.07,145.94,6.10386983]
[1723737604153,3.4236,146.04,146.02,3.424]
[1723737604347,4.78,146.1,146.03,3.36999527]
[1723737604548,3.44912404,146.14,146.03,3.35184018]
[1723737604753,3.422,146.11,146.08,3.4225]
[1723737604958,0.8053,146.16,146.05,3.41685551]
[1723737605154,0.6176,146.16,146.05,3.41685551]
[1723737605553,0.236,146.19,146.04,7.3662]
[1723737605747,7.08,146.19,146.05,3.49420794]
[1723737605950,0.04408766,146.11,146.06,4.78]
[1723737606157,0.04408766,146.11,146.1,0.04850898]
[1723737606353,3.47846364,146.16,146.1,0.04850898]
[1723737606552,0.236,146.19,146.06,8.25161829]
[1723737606860,0.04917272,146.12,146.06,8.25161829]
[1723737607053,0.04917272,146.12,146.11,0.05026897]
[1723737607252,1.3458,146.2,146.11,4.78]
[1723737608158,1.3458,146.2,146.11,8.2017]
[1723737608554,3.4209,146.16,146.14,0.04679652]
[1723737608755,0.04575162,146.17,146.14,0.04679652]
[1723737609253,3.4209,146.15,146.14,0.04679652]
[1723737609961,0.04575162,146.17,146.14,0.04679652]
[1723737610353,3.4209,146.15,146.14,0.04679652]
[1723737610555,20.0,146.14,145.9,9.32721826]
[1723737610862,3.4251,145.98,145.92,10.21849481]
[1723737611050,4.78,146.01,145.93,10.21849481]
[1723737611357,4.78,146.01,145.92,1.2822]
[1723737611358,4.78,146.01,145.92,2.5653]
[1723737611662,3.426,145.94,145.92,2.5653]
[1723737612161,3.426,145.94,145.92,2.61306449]
[1723737612368,3.47096215,145.94,145.92,2.61306449]
[1723737612560,0.04496215,145.94,145.92,2.61306449]
[1723737612755,4.78,146.11,145.92,2.61306449]
[1723737612960,81.5833406,146.43,145.92,2.61306449]
[1723737612961,4.78,146.13,145.93,4.78]
[1723737613163,4.78,146.13,145.99,3.4245]
[1723737613364,8.18140026,146.13,146.0,2.5805]
[1723737613658,3.4237,146.04,146.0,6.005]
[1723737613860,15.02540026,146.13,146.0,2.5805]
[1723737614165,0.05004147,146.08,146.05,0.04726974]
[1723737620660,0.05004147,146.08,146.05,37.00726974]
[1723737621061,0.05004147,146.08,146.05,0.04726974]
[1723737622278,6.844,146.13,146.05,0.04726974]
[1723737622464,6.844,146.13,146.08,3.4224]
[1723737623169,6.844,146.15,146.09,3.4223]
[1723737623363,6.844,146.15,146.08,4.78]
[1723737623575,0.04541187,146.13,146.11,0.04569761]
[1723737623977,36.96,146.2,146.11,0.04569761]
[1723737624275,36.96,146.2,146.12,3.4215]
[1723737624468,36.96,146.2,146.11,0.04569761]
[1723737624674,36.96,146.2,146.1,36.96]